[Event "Titled Tuesday Blitz June 28 Late 2022"]
[White "Terry, Renato"]
[Black "Corrales Jimenez, Fidel"]
[WhiteFideId "3803457"]
[BlackFideId "3506690"]
[WhiteElo "2577"]
[BlackElo "2541"]
[Result "1/2-1/2"]
[Round "09"]
[TimeControl "180+1"]
[Date "2022.06.28"]
[WhiteClock "0:00:02"]
[BlackClock "0:00:09"]

1. d4 {[%clk 0:03:00]}  Nf6 {[%clk 0:02:59]} 2. Bg5 {[%clk 0:03:01]}  Ne4 {[%clk 0:02:57]} 3. Bf4 {[%clk 0:03:01]}  c5 {[%clk 0:02:56]} 4. f3 {[%clk 0:03:01]}  Qa5+ {[%clk 0:02:55]} 5. c3 {[%clk 0:03:01]}  Nf6 {[%clk 0:02:55]} 6. d5 {[%clk 0:03:02]}  d6 {[%clk 0:02:52]} 7. e4 {[%clk 0:03:01]}  e6 {[%clk 0:02:30]} 8. Na3 {[%clk 0:02:58]}  exd5 {[%clk 0:02:28]} 9. exd5 {[%clk 0:02:59]}  Be7 {[%clk 0:02:26]} 10. Nc4 {[%clk 0:02:53]}  Qd8 {[%clk 0:02:25]} 11. a4 {[%clk 0:02:52]}  O-O {[%clk 0:02:24]} 12. Ne2 {[%clk 0:02:44]}  Na6 {[%clk 0:02:20]} 13. g4 {[%clk 0:02:32]}  Re8 {[%clk 0:02:08]} 14. Bg2 {[%clk 0:02:29]}  Nxg4 {[%clk 0:01:21]} 15. fxg4 {[%clk 0:02:28]}  Bh4+ {[%clk 0:01:22]} 16. Kd2 {[%clk 0:01:49]}  Bxg4 {[%clk 0:01:22]} 17. Ne3 {[%clk 0:01:50]}  Bh5 {[%clk 0:01:17]} 18. Qc2 {[%clk 0:01:23]}  Bxe2 {[%clk 0:00:24]} 19. Kxe2 {[%clk 0:01:22]}  c4 {[%clk 0:00:23]} 20. Kf3 {[%clk 0:01:08]}  Nc5 {[%clk 0:00:23]} 21. Nxc4 {[%clk 0:01:00]}  Bg5 {[%clk 0:00:22]} 22. Qf5 {[%clk 0:00:51]}  Bxf4 {[%clk 0:00:21]} 23. Qxf4 {[%clk 0:00:52]}  Nd3 {[%clk 0:00:20]} 24. Qd4 {[%clk 0:00:50]}  Ne5+ {[%clk 0:00:12]} 25. Nxe5 {[%clk 0:00:47]}  Rxe5 {[%clk 0:00:13]} 26. Kf2 {[%clk 0:00:41]}  Qf6+ {[%clk 0:00:12]} 27. Bf3 {[%clk 0:00:42]}  Qf5 {[%clk 0:00:09]} 28. Rae1 {[%clk 0:00:36]}  Qc2+ {[%clk 0:00:09]} 29. Re2 {[%clk 0:00:33]}  Rxe2+ {[%clk 0:00:09]} 30. Bxe2 {[%clk 0:00:34]}  Qxb2 {[%clk 0:00:10]} 31. Qe3 {[%clk 0:00:29]}  Rc8 {[%clk 0:00:10]} 32. c4 {[%clk 0:00:29]}  Qb4 {[%clk 0:00:08]} 33. Rg1 {[%clk 0:00:17]}  g6 {[%clk 0:00:08]} 34. Qe7 {[%clk 0:00:08]}  Qb6+ {[%clk 0:00:06]} 35. Qe3 {[%clk 0:00:08]}  Qb4 {[%clk 0:00:06]} 36. h4 {[%clk 0:00:07]}  Qxa4 {[%clk 0:00:06]} 37. h5 {[%clk 0:00:08]}  Re8 {[%clk 0:00:05]} 38. Qd3 {[%clk 0:00:07]}  Qb4 {[%clk 0:00:05]} 39. hxg6 {[%clk 0:00:06]}  hxg6 {[%clk 0:00:06]} 40. Rg3 {[%clk 0:00:05]}  Qc5+ {[%clk 0:00:06]} 41. Kg2 {[%clk 0:00:05]}  Re5 {[%clk 0:00:07]} 42. Rf3 {[%clk 0:00:03]}  b5 {[%clk 0:00:07]} 43. cxb5 {[%clk 0:00:03]}  Rxd5 {[%clk 0:00:08]} 44. Qe4 {[%clk 0:00:03]}  Rg5+ {[%clk 0:00:08]} 45. Rg3 {[%clk 0:00:03]}  Re5 {[%clk 0:00:09]} 46. Qd3 {[%clk 0:00:03]}  Rd5 {[%clk 0:00:09]} 47. Qe4 {[%clk 0:00:03]}  Re5 {[%clk 0:00:10]} 48. Qf3 {[%clk 0:00:03]}  Rf5 {[%clk 0:00:09]} 49. Qe4 {[%clk 0:00:02]}  Re5 {[%clk 0:00:09]} 1/2-1/2


[Site "https://www.chess.com"]

[Event "Titled Tuesday Blitz June 28 Late 2022"]
[White "Urbina Perez, Juan Antonio"]
[Black "Sanchez Alarcon, Juan"]
[WhiteFideId "2217368"]
[BlackFideId "3401332"]
[WhiteElo "2192"]
[BlackElo "2164"]
[Result "1-0"]
[Round "09"]
[TimeControl "180+1"]
[Date "2022.06.29"]
[WhiteClock "0:01:06"]
[BlackClock "0:01:14"]

1. d4 {[%clk 0:02:54]}  Nf6 {[%clk 0:02:59]} 2. Nf3 {[%clk 0:02:55]}  g6 {[%clk 0:02:57]} 3. g3 {[%clk 0:02:55]}  Bg7 {[%clk 0:02:57]} 4. Bg2 {[%clk 0:02:56]}  O-O {[%clk 0:02:55]} 5. O-O {[%clk 0:02:57]}  d6 {[%clk 0:02:55]} 6. Re1 {[%clk 0:02:58]}  Nbd7 {[%clk 0:02:54]} 7. Nc3 {[%clk 0:02:59]}  e5 {[%clk 0:02:53]} 8. e4 {[%clk 0:02:59]}  c6 {[%clk 0:02:52]} 9. a4 {[%clk 0:02:58]}  a5 {[%clk 0:02:51]} 10. Bg5 {[%clk 0:02:58]}  h6 {[%clk 0:02:50]} 11. Be3 {[%clk 0:02:58]}  Qc7 {[%clk 0:02:48]} 12. Qd2 {[%clk 0:02:57]}  Kh7 {[%clk 0:02:48]} 13. Rac1 {[%clk 0:02:56]}  Re8 {[%clk 0:02:43]} 14. d5 {[%clk 0:02:56]}  c5 {[%clk 0:02:40]} 15. Nb5 {[%clk 0:02:52]}  Qb8 {[%clk 0:02:40]} 16. Qd3 {[%clk 0:02:48]}  b6 {[%clk 0:02:32]} 17. Nd2 {[%clk 0:02:48]}  Ba6 {[%clk 0:02:31]} 18. b3 {[%clk 0:02:40]}  Ng4 {[%clk 0:02:30]} 19. Bh3 {[%clk 0:02:37]}  Ndf6 {[%clk 0:02:23]} 20. f3 {[%clk 0:02:32]}  Nxe3 {[%clk 0:02:22]} 21. Qxe3 {[%clk 0:02:30]}  h5 {[%clk 0:02:21]} 22. Nc4 {[%clk 0:02:27]}  Rd8 {[%clk 0:02:19]} 23. f4 {[%clk 0:02:24]}  Bh6 {[%clk 0:02:18]} 24. Qf3 {[%clk 0:02:22]}  exf4 {[%clk 0:02:17]} 25. gxf4 {[%clk 0:02:23]}  Ne8 {[%clk 0:02:15]} 26. Rcd1 {[%clk 0:02:20]}  Qb7 {[%clk 0:02:11]} 27. e5 {[%clk 0:02:07]}  Bxb5 {[%clk 0:02:10]} 28. axb5 {[%clk 0:02:06]}  Ra7 {[%clk 0:02:10]} 29. f5 {[%clk 0:01:59]}  Qe7 {[%clk 0:02:07]} 30. f6 {[%clk 0:01:51]}  Qc7 {[%clk 0:02:06]} 31. e6 {[%clk 0:01:50]}  Bg5 {[%clk 0:01:59]} 32. Bf5 {[%clk 0:01:35]}  Nxf6 {[%clk 0:01:53]} 33. e7 {[%clk 0:01:31]}  Re8 {[%clk 0:01:50]} 34. h4 {[%clk 0:01:16]}  Bxh4 {[%clk 0:01:47]} 35. Re4 {[%clk 0:01:17]}  Bg5 {[%clk 0:01:44]} 36. Rde1 {[%clk 0:01:16]}  Kh6 {[%clk 0:01:37]} 37. Bxg6 {[%clk 0:01:09]}  fxg6 {[%clk 0:01:36]} 38. Re6 {[%clk 0:01:09]}  Kg7 {[%clk 0:01:33]} 39. Nxd6 {[%clk 0:01:07]}  c4 {[%clk 0:01:16]} 40. Nxe8+ {[%clk 0:01:06]}  Nxe8 {[%clk 0:01:14]} 41. Qf8+ {[%clk 0:01:06]} 1-0


[Site "https://www.chess.com"]

[Event "Titled Tuesday Blitz June 28 Late 2022"]
[White "Van Foreest, Jorden"]
[Black "Deac, Bogdan-Daniel"]
[WhiteFideId "1039784"]
[BlackFideId "1226380"]
[WhiteElo "2609"]
[BlackElo "2648"]
[Result "0-1"]
[Round "09"]
[TimeControl "180+1"]
[Date "2022.06.28"]
[WhiteClock "0:00:04"]
[BlackClock "0:00:09"]

1. e4 {[%clk 0:02:27]}  c5 {[%clk 0:02:59]} 2. d4 {[%clk 0:02:26]}  cxd4 {[%clk 0:02:59]} 3. Qxd4 {[%clk 0:02:27]}  Nc6 {[%clk 0:02:58]} 4. Qd3 {[%clk 0:02:28]}  g6 {[%clk 0:02:57]} 5. Nc3 {[%clk 0:02:28]}  Bg7 {[%clk 0:02:57]} 6. Nf3 {[%clk 0:02:26]}  Nf6 {[%clk 0:02:55]} 7. Be2 {[%clk 0:02:24]}  O-O {[%clk 0:02:54]} 8. Bg5 {[%clk 0:02:25]}  h6 {[%clk 0:02:51]} 9. Bh4 {[%clk 0:02:15]}  d6 {[%clk 0:02:47]} 10. O-O {[%clk 0:02:15]}  Be6 {[%clk 0:02:47]} 11. Rad1 {[%clk 0:02:09]}  Rc8 {[%clk 0:02:47]} 12. a3 {[%clk 0:02:07]}  Nd7 {[%clk 0:02:24]} 13. Qe3 {[%clk 0:02:07]}  Qb6 {[%clk 0:02:20]} 14. Qxb6 {[%clk 0:02:03]}  Nxb6 {[%clk 0:02:17]} 15. Nd5 {[%clk 0:01:53]}  g5 {[%clk 0:02:16]} 16. Bg3 {[%clk 0:01:45]}  Bxb2 {[%clk 0:02:13]} 17. Bb5 {[%clk 0:01:42]}  Bxd5 {[%clk 0:01:37]} 18. exd5 {[%clk 0:01:43]}  Ne5 {[%clk 0:01:37]} 19. Rfe1 {[%clk 0:01:43]}  Nxf3+ {[%clk 0:01:27]} 20. gxf3 {[%clk 0:01:42]}  Bf6 {[%clk 0:01:27]} 21. Re2 {[%clk 0:01:26]}  Rc5 {[%clk 0:01:25]} 22. Bd3 {[%clk 0:01:25]}  Nxd5 {[%clk 0:01:22]} 23. Ree1 {[%clk 0:01:16]}  Rfc8 {[%clk 0:01:10]} 24. Kg2 {[%clk 0:01:17]}  Nc3 {[%clk 0:01:06]} 25. Rc1 {[%clk 0:01:17]}  Ra5 {[%clk 0:00:17]} 26. Ra1 {[%clk 0:01:17]}  Ra4 {[%clk 0:00:11]} 27. Rg1 {[%clk 0:01:00]}  Kf8 {[%clk 0:00:10]} 28. h4 {[%clk 0:00:55]}  gxh4 {[%clk 0:00:08]} 29. Bh2 {[%clk 0:00:56]}  b6 {[%clk 0:00:08]} 30. Kh3 {[%clk 0:00:51]}  Nd5 {[%clk 0:00:05]} 31. Bh7 {[%clk 0:00:52]}  Ke8 {[%clk 0:00:03]} 32. Rad1 {[%clk 0:00:12]}  Nf4+ {[%clk 0:00:03]} 33. Bxf4 {[%clk 0:00:13]}  Rxf4 {[%clk 0:00:03]} 34. Be4 {[%clk 0:00:14]}  Kd7 {[%clk 0:00:03]} 35. Kg2 {[%clk 0:00:12]}  Rc5 {[%clk 0:00:03]} 36. Kf1 {[%clk 0:00:11]}  e6 {[%clk 0:00:03]} 37. Rg8 {[%clk 0:00:11]}  d5 {[%clk 0:00:03]} 38. Bd3 {[%clk 0:00:12]}  Rxf3 {[%clk 0:00:03]} 39. Ra8 {[%clk 0:00:13]}  Rc7 {[%clk 0:00:02]} 40. Ke2 {[%clk 0:00:14]}  Rf4 {[%clk 0:00:02]} 41. Rg1 {[%clk 0:00:14]}  Kd6 {[%clk 0:00:02]} 42. Rh1 {[%clk 0:00:10]}  Bg5 {[%clk 0:00:03]} 43. Rb8 {[%clk 0:00:08]}  Ra4 {[%clk 0:00:03]} 44. Ra1 {[%clk 0:00:07]}  Rf4 {[%clk 0:00:03]} 45. a4 {[%clk 0:00:07]}  Ke5 {[%clk 0:00:03]} 46. a5 {[%clk 0:00:07]}  bxa5 {[%clk 0:00:03]} 47. Rxa5 {[%clk 0:00:07]}  h3 {[%clk 0:00:04]} 48. Ra1 {[%clk 0:00:07]}  h2 {[%clk 0:00:04]} 49. Rh1 {[%clk 0:00:08]}  Rh4 {[%clk 0:00:04]} 50. Kf3 {[%clk 0:00:08]}  a5 {[%clk 0:00:04]} 51. Ra8 {[%clk 0:00:08]}  a4 {[%clk 0:00:04]} 52. Kg3 {[%clk 0:00:08]}  Rc3 {[%clk 0:00:04]} 53. Re1+ {[%clk 0:00:08]}  Kf6 {[%clk 0:00:04]} 54. Kg2 {[%clk 0:00:09]}  a3 {[%clk 0:00:03]} 55. Rh1 {[%clk 0:00:09]}  Bf4 {[%clk 0:00:03]} 56. Ra7 {[%clk 0:00:09]}  Be5 {[%clk 0:00:04]} 57. Bh7 {[%clk 0:00:08]}  Rg4+ {[%clk 0:00:04]} 58. Kf1 {[%clk 0:00:08]}  Rg7 {[%clk 0:00:04]} 59. Bd3 {[%clk 0:00:08]}  Rg4 {[%clk 0:00:04]} 60. Ra8 {[%clk 0:00:08]}  h5 {[%clk 0:00:03]} 61. Ra7 {[%clk 0:00:08]}  h4 {[%clk 0:00:04]} 62. Ra6 {[%clk 0:00:08]}  h3 {[%clk 0:00:04]} 63. Ra8 {[%clk 0:00:09]}  Rg1+ {[%clk 0:00:04]} 64. Rxg1 {[%clk 0:00:09]}  hxg1=Q+ {[%clk 0:00:05]} 65. Kxg1 {[%clk 0:00:10]}  h2+ {[%clk 0:00:06]} 66. Kg2 {[%clk 0:00:10]}  Rc7 {[%clk 0:00:06]} 67. Rxa3 {[%clk 0:00:08]}  Rc8 {[%clk 0:00:07]} 68. f4 {[%clk 0:00:05]}  Bxf4 {[%clk 0:00:06]} 69. Ra1 {[%clk 0:00:05]}  Rg8+ {[%clk 0:00:07]} 70. Kh1 {[%clk 0:00:06]}  e5 {[%clk 0:00:07]} 71. c4 {[%clk 0:00:05]}  e4 {[%clk 0:00:07]} 72. Bc2 {[%clk 0:00:06]}  dxc4 {[%clk 0:00:06]} 73. Bxe4 {[%clk 0:00:07]}  c3 {[%clk 0:00:06]} 74. Rf1 {[%clk 0:00:05]}  Ke5 {[%clk 0:00:07]} 75. Bc2 {[%clk 0:00:05]}  Rg1+ {[%clk 0:00:06]} 76. Rxg1 {[%clk 0:00:06]}  hxg1=Q+ {[%clk 0:00:06]} 77. Kxg1 {[%clk 0:00:07]}  Kd4 {[%clk 0:00:07]} 78. Kf2 {[%clk 0:00:07]}  Ke5 {[%clk 0:00:07]} 79. Kf3 {[%clk 0:00:08]}  f5 {[%clk 0:00:07]} 80. Bd3 {[%clk 0:00:09]}  Bd2 {[%clk 0:00:07]} 81. Bc2 {[%clk 0:00:09]}  Kf6 {[%clk 0:00:07]} 82. Bd3 {[%clk 0:00:10]}  Ke5 {[%clk 0:00:07]} 83. Bc2 {[%clk 0:00:10]}  f4 {[%clk 0:00:07]} 84. Bb1 {[%clk 0:00:11]}  Kd4 {[%clk 0:00:08]} 85. Bc2 {[%clk 0:00:11]}  Kc4 {[%clk 0:00:08]} 86. Be4 {[%clk 0:00:09]}  Kb3 {[%clk 0:00:08]} 87. Ke2 {[%clk 0:00:10]}  Kb2 {[%clk 0:00:08]} 88. Kd1 {[%clk 0:00:05]}  Be3 {[%clk 0:00:08]} 89. Bd3 {[%clk 0:00:04]}  f3 {[%clk 0:00:08]} 90. Be4 {[%clk 0:00:03]}  f2 {[%clk 0:00:08]} 91. Ke2 {[%clk 0:00:04]}  c2 {[%clk 0:00:09]} 0-1


[Site "https://www.chess.com"]

[Event "Titled Tuesday Blitz June 28 Late 2022"]
[White "Vlassov, Nikolai"]
[Black "Carrasco Miranda, Andres"]
[WhiteFideId "4103360"]
[BlackFideId "3405990"]
[WhiteElo "2407"]
[BlackElo "2177"]
[Result "0-1"]
[Round "09"]
[TimeControl "180+1"]
[Date "2022.06.29"]
[WhiteClock "0:00:27"]
[BlackClock "0:00:35"]

1. e4 {[%clk 0:03:00]}  c5 {[%clk 0:02:54]} 2. c3 {[%clk 0:03:00]}  d5 {[%clk 0:02:54]} 3. exd5 {[%clk 0:03:00]}  Qxd5 {[%clk 0:02:55]} 4. d4 {[%clk 0:03:00]}  g6 {[%clk 0:02:55]} 5. dxc5 {[%clk 0:02:59]}  Qxc5 {[%clk 0:02:54]} 6. Be3 {[%clk 0:02:59]}  Qc7 {[%clk 0:02:54]} 7. Bxa7 {[%clk 0:02:59]}  Nc6 {[%clk 0:02:49]} 8. Be3 {[%clk 0:02:57]}  Nh6 {[%clk 0:02:47]} 9. Nf3 {[%clk 0:02:57]}  Nf5 {[%clk 0:02:47]} 10. Bc1 {[%clk 0:02:56]}  e5 {[%clk 0:02:41]} 11. Bb5 {[%clk 0:02:49]}  e4 {[%clk 0:02:40]} 12. Nd4 {[%clk 0:02:48]}  Nxd4 {[%clk 0:02:39]} 13. Qxd4 {[%clk 0:02:47]}  Rg8 {[%clk 0:02:27]} 14. Qxe4+ {[%clk 0:02:46]}  Be6 {[%clk 0:02:24]} 15. O-O {[%clk 0:02:45]}  Bd6 {[%clk 0:02:24]} 16. h3 {[%clk 0:02:38]}  g5 {[%clk 0:02:22]} 17. Qxh7 {[%clk 0:02:20]}  O-O-O {[%clk 0:02:21]} 18. Qe4 {[%clk 0:02:17]}  g4 {[%clk 0:02:19]} 19. h4 {[%clk 0:02:17]}  g3 {[%clk 0:02:02]} 20. Bxc6 {[%clk 0:01:54]}  gxf2+ {[%clk 0:02:00]} 21. Rxf2 {[%clk 0:01:51]}  Bh2+ {[%clk 0:01:45]} 22. Kf1 {[%clk 0:01:50]}  Rd1+ {[%clk 0:01:40]} 23. Ke2 {[%clk 0:01:49]}  Bg4+ {[%clk 0:01:36]} 24. Qxg4+ {[%clk 0:01:39]}  Rxg4 {[%clk 0:01:35]} 25. Kxd1 {[%clk 0:01:15]}  Qxc6 {[%clk 0:01:28]} 26. Nd2 {[%clk 0:01:03]}  Bg3 {[%clk 0:01:07]} 27. Rxf7 {[%clk 0:01:01]}  Rxh4 {[%clk 0:01:07]} 28. Rf8+ {[%clk 0:00:49]}  Kd7 {[%clk 0:01:05]} 29. Rg8 {[%clk 0:00:48]}  Rh1+ {[%clk 0:00:58]} 30. Kc2 {[%clk 0:00:48]}  Bf4 {[%clk 0:00:46]} 31. Rg7+ {[%clk 0:00:47]}  Ke8 {[%clk 0:00:45]} 32. Rg8+ {[%clk 0:00:31]}  Kf7 {[%clk 0:00:43]} 33. Rd8 {[%clk 0:00:31]}  Qg6+ {[%clk 0:00:35]} 34. Kb3 {[%clk 0:00:30]}  Qb6+ {[%clk 0:00:35]} 35. Kc2 {[%clk 0:00:27]}  Qxd8 {[%clk 0:00:35]} 0-1


[Site "https://www.chess.com"]

[Event "Titled Tuesday Blitz June 28 Late 2022"]
[White "Wang, Isaac"]
[Black "Isajevsky, Anton"]
[WhiteFideId "30977185"]
[BlackFideId "4142500"]
[WhiteElo "2325"]
[BlackElo "2510"]
[Result "1-0"]
[Round "09"]
[TimeControl "180+1"]
[Date "2022.06.29"]
[WhiteClock "0:00:38"]
[BlackClock "0:00:01"]

1. d4 {[%clk 0:03:00]}  d5 {[%clk 0:02:29]} 2. c4 {[%clk 0:02:59]}  e6 {[%clk 0:02:29]} 3. Nc3 {[%clk 0:02:58]}  Be7 {[%clk 0:02:28]} 4. cxd5 {[%clk 0:02:55]}  exd5 {[%clk 0:02:29]} 5. Bf4 {[%clk 0:02:54]}  c6 {[%clk 0:02:30]} 6. e3 {[%clk 0:02:53]}  Bd6 {[%clk 0:02:30]} 7. Bxd6 {[%clk 0:02:51]}  Qxd6 {[%clk 0:02:31]} 8. Bd3 {[%clk 0:02:51]}  Ne7 {[%clk 0:02:30]} 9. Nge2 {[%clk 0:02:51]}  Bf5 {[%clk 0:02:29]} 10. O-O {[%clk 0:02:50]}  O-O {[%clk 0:02:28]} 11. f3 {[%clk 0:02:49]}  Nd7 {[%clk 0:02:13]} 12. e4 {[%clk 0:02:37]}  dxe4 {[%clk 0:02:04]} 13. fxe4 {[%clk 0:02:38]}  Bg6 {[%clk 0:02:04]} 14. Qc2 {[%clk 0:02:24]}  c5 {[%clk 0:01:40]} 15. Nb5 {[%clk 0:02:12]}  Qb6 {[%clk 0:01:38]} 16. a4 {[%clk 0:01:54]}  cxd4 {[%clk 0:01:31]} 17. a5 {[%clk 0:01:49]}  Qd8 {[%clk 0:01:11]} 18. Nbxd4 {[%clk 0:01:34]}  Rc8 {[%clk 0:00:55]} 19. Qd2 {[%clk 0:01:24]}  Nc5 {[%clk 0:00:50]} 20. Qe3 {[%clk 0:01:17]}  Nxd3 {[%clk 0:00:37]} 21. Qxd3 {[%clk 0:01:16]}  Nc6 {[%clk 0:00:38]} 22. Rfd1 {[%clk 0:01:10]}  Nxa5 {[%clk 0:00:18]} 23. b4 {[%clk 0:01:01]}  Nc4 {[%clk 0:00:16]} 24. Rdc1 {[%clk 0:00:58]}  Nd6 {[%clk 0:00:12]} 25. Rxc8 {[%clk 0:00:55]}  Qxc8 {[%clk 0:00:11]} 26. Rxa7 {[%clk 0:00:52]}  Nxe4 {[%clk 0:00:09]} 27. Qf3 {[%clk 0:00:47]}  Rd8 {[%clk 0:00:06]} 28. h3 {[%clk 0:00:43]}  h6 {[%clk 0:00:01]} 29. Ra3 {[%clk 0:00:38]} 1-0


[Site "https://www.chess.com"]

[Event "Titled Tuesday Blitz June 28 Late 2022"]
[White "Zhu, Jiner"]
[Black "Meunier-Pion, Jean"]
[WhiteFideId "8608059"]
[BlackFideId "20685327"]
[WhiteElo "2281"]
[BlackElo "2124"]
[Result "1-0"]
[Round "09"]
[TimeControl "180+1"]
[Date "2022.06.28"]
[WhiteClock "0:00:09"]
[BlackClock "0:00:01"]

1. e4 {[%clk 0:02:50]}  c5 {[%clk 0:02:59]} 2. Nf3 {[%clk 0:02:49]}  d6 {[%clk 0:02:59]} 3. d4 {[%clk 0:02:50]}  cxd4 {[%clk 0:03:00]} 4. Nxd4 {[%clk 0:02:50]}  Nf6 {[%clk 0:03:01]} 5. Nc3 {[%clk 0:02:51]}  a6 {[%clk 0:03:01]} 6. Be3 {[%clk 0:02:51]}  Ng4 {[%clk 0:02:59]} 7. Bc1 {[%clk 0:02:50]}  Nf6 {[%clk 0:02:59]} 8. f3 {[%clk 0:02:48]}  e6 {[%clk 0:02:59]} 9. Be3 {[%clk 0:02:47]}  b5 {[%clk 0:02:59]} 10. a3 {[%clk 0:02:43]}  Be7 {[%clk 0:02:59]} 11. Qd2 {[%clk 0:02:43]}  Bb7 {[%clk 0:02:59]} 12. O-O-O {[%clk 0:02:41]}  Nc6 {[%clk 0:02:51]} 13. g4 {[%clk 0:02:41]}  Nd7 {[%clk 0:02:50]} 14. Nxc6 {[%clk 0:02:38]}  Bxc6 {[%clk 0:02:49]} 15. Ne2 {[%clk 0:02:36]}  Ne5 {[%clk 0:02:47]} 16. Nd4 {[%clk 0:02:36]}  Qc7 {[%clk 0:02:39]} 17. Kb1 {[%clk 0:02:35]}  d5 {[%clk 0:02:18]} 18. Nxc6 {[%clk 0:02:32]}  Qxc6 {[%clk 0:02:04]} 19. exd5 {[%clk 0:02:20]}  exd5 {[%clk 0:01:53]} 20. Bg2 {[%clk 0:02:11]}  Nc4 {[%clk 0:01:48]} 21. Qd3 {[%clk 0:02:01]}  O-O {[%clk 0:01:33]} 22. Bc1 {[%clk 0:01:48]}  Bf6 {[%clk 0:01:13]} 23. Qxd5 {[%clk 0:01:44]}  Nxa3+ {[%clk 0:01:13]} 24. bxa3 {[%clk 0:01:39]}  Qc3 {[%clk 0:01:13]} 25. Qa2 {[%clk 0:01:39]}  b4 {[%clk 0:01:05]} 26. Bb2 {[%clk 0:01:28]}  Qc5 {[%clk 0:00:31]} 27. Qd5 {[%clk 0:01:21]}  Qb6 {[%clk 0:00:27]} 28. Qd6 {[%clk 0:01:14]}  Qb7 {[%clk 0:00:17]} 29. Bxf6 {[%clk 0:01:01]}  bxa3+ {[%clk 0:00:09]} 30. Ka1 {[%clk 0:01:01]}  gxf6 {[%clk 0:00:09]} 31. Rb1 {[%clk 0:00:57]}  Qc8 {[%clk 0:00:06]} 32. Qxf6 {[%clk 0:00:38]}  Re8 {[%clk 0:00:06]} 33. Rhc1 {[%clk 0:00:22]}  Re2 {[%clk 0:00:05]} 34. Bf1 {[%clk 0:00:14]}  Rxh2 {[%clk 0:00:01]} 35. Bd3 {[%clk 0:00:13]}  Qd8 {[%clk 0:00:01]} 36. Qxd8+ {[%clk 0:00:12]}  Rxd8 {[%clk 0:00:02]} 37. Rh1 {[%clk 0:00:12]}  Rg2 {[%clk 0:00:02]} 38. Bxh7+ {[%clk 0:00:11]}  Kg7 {[%clk 0:00:02]} 39. Bd3 {[%clk 0:00:12]}  Rd2 {[%clk 0:00:02]} 40. Rhd1 {[%clk 0:00:10]}  Rf2 {[%clk 0:00:02]} 41. Rf1 {[%clk 0:00:11]}  Rg2 {[%clk 0:00:02]} 42. Rbd1 {[%clk 0:00:09]}  a2 {[%clk 0:00:02]} 43. Kxa2 {[%clk 0:00:09]}  Rc8 {[%clk 0:00:02]} 44. Kb2 {[%clk 0:00:09]}  Rc5 {[%clk 0:00:03]} 45. Be4 {[%clk 0:00:09]}  Ra5 {[%clk 0:00:03]} 46. Rd3 {[%clk 0:00:09]}  Rb5+ {[%clk 0:00:04]} 47. Rb3 {[%clk 0:00:09]}  Rc5 {[%clk 0:00:04]} 48. Ra1 {[%clk 0:00:08]}  a5 {[%clk 0:00:04]} 49. Ra4 {[%clk 0:00:07]}  Rf2 {[%clk 0:00:04]} 50. Rba3 {[%clk 0:00:07]}  Rb5+ {[%clk 0:00:04]} 51. Ka2 {[%clk 0:00:07]}  Rc5 {[%clk 0:00:04]} 52. Rxa5 {[%clk 0:00:08]}  Rc4 {[%clk 0:00:04]} 53. R3a4 {[%clk 0:00:07]}  Rc3 {[%clk 0:00:04]} 54. Kb2 {[%clk 0:00:07]}  Re3 {[%clk 0:00:03]} 55. Rg5+ {[%clk 0:00:07]}  Kf6 {[%clk 0:00:03]} 56. Rf5+ {[%clk 0:00:07]}  Kg7 {[%clk 0:00:03]} 57. Ra7 {[%clk 0:00:08]}  Re1 {[%clk 0:00:03]} 58. Rfxf7+ {[%clk 0:00:08]}  Kg8 {[%clk 0:00:03]} 59. Rg7+ {[%clk 0:00:09]}  Kh8 {[%clk 0:00:03]} 60. Rgb7 {[%clk 0:00:09]}  Rd2 {[%clk 0:00:01]} 61. Rb8+ {[%clk 0:00:09]} 1-0


[Site "https://www.chess.com"]

[Event "Titled Tuesday Blitz June 28 Late 2022"]
[White "Adewumi, Tanitoluwa"]
[Black "Kostiukov, Alexandr"]
[WhiteFideId "30966396"]
[BlackFideId "14108100"]
[WhiteElo "2629"]
[BlackElo "2202"]
[Result "1-0"]
[Round "10"]
[TimeControl "180+1"]
[Date "2022.06.29"]
[WhiteClock "0:00:04"]
[BlackClock "0:00:22"]

1. d4 {[%clk 0:03:00]}  g6 {[%clk 0:02:57]} 2. e4 {[%clk 0:02:57]}  c5 {[%clk 0:02:56]} 3. c3 {[%clk 0:02:52]}  cxd4 {[%clk 0:02:56]} 4. cxd4 {[%clk 0:02:53]}  d5 {[%clk 0:02:57]} 5. e5 {[%clk 0:02:53]}  Bg7 {[%clk 0:02:55]} 6. Nf3 {[%clk 0:02:53]}  Bg4 {[%clk 0:02:54]} 7. Bb5+ {[%clk 0:02:54]}  Nc6 {[%clk 0:02:53]} 8. Bxc6+ {[%clk 0:02:54]}  bxc6 {[%clk 0:02:52]} 9. Nbd2 {[%clk 0:02:55]}  Nh6 {[%clk 0:02:52]} 10. h3 {[%clk 0:02:50]}  Bxf3 {[%clk 0:02:52]} 11. Nxf3 {[%clk 0:02:22]}  O-O {[%clk 0:02:53]} 12. O-O {[%clk 0:02:19]}  f6 {[%clk 0:02:50]} 13. exf6 {[%clk 0:02:08]}  exf6 {[%clk 0:02:50]} 14. Bd2 {[%clk 0:02:05]}  Nf5 {[%clk 0:02:47]} 15. Bb4 {[%clk 0:02:03]}  Re8 {[%clk 0:02:46]} 16. Qc2 {[%clk 0:01:56]}  Rc8 {[%clk 0:02:29]} 17. Bc5 {[%clk 0:01:55]}  a5 {[%clk 0:02:17]} 18. Rae1 {[%clk 0:01:34]}  Rxe1 {[%clk 0:02:09]} 19. Rxe1 {[%clk 0:01:35]}  Nd6 {[%clk 0:02:09]} 20. Qe2 {[%clk 0:01:20]}  Ne4 {[%clk 0:01:59]} 21. Qa6 {[%clk 0:01:07]}  Nxc5 {[%clk 0:01:50]} 22. dxc5 {[%clk 0:01:08]}  Qc7 {[%clk 0:01:50]} 23. Nd4 {[%clk 0:00:56]}  Bf8 {[%clk 0:01:09]} 24. Re6 {[%clk 0:00:35]}  Qd7 {[%clk 0:01:06]} 25. Rxf6 {[%clk 0:00:28]}  Bxc5 {[%clk 0:00:58]} 26. Nxc6 {[%clk 0:00:19]}  Re8 {[%clk 0:00:49]} 27. Qxa5 {[%clk 0:00:13]}  Kg7 {[%clk 0:00:38]} 28. Qxc5 {[%clk 0:00:11]}  Kxf6 {[%clk 0:00:37]} 29. Qd4+ {[%clk 0:00:11]}  Kg5 {[%clk 0:00:33]} 30. Ne5 {[%clk 0:00:11]}  Qf5 {[%clk 0:00:31]} 31. h4+ {[%clk 0:00:06]}  Kh6 {[%clk 0:00:28]} 32. Ng4+ {[%clk 0:00:06]}  Kh5 {[%clk 0:00:25]} 33. Nf6+ {[%clk 0:00:06]}  Kh6 {[%clk 0:00:25]} 34. Qd2+ {[%clk 0:00:06]}  Kg7 {[%clk 0:00:21]} 35. Nxe8+ {[%clk 0:00:06]}  Kf7 {[%clk 0:00:22]} 36. Nd6+ {[%clk 0:00:03]}  Ke6 {[%clk 0:00:22]} 37. Nxf5 {[%clk 0:00:04]} 1-0


[Site "https://www.chess.com"]